fUSD/lending_fUSD_20251219
["ID","MTS","AMOUNT","RATE_DAILY","PERIOD"]
[399071761,1766102433141,-300.0,0.0001553,2]
[399071762,1766102433184,-1200.0,0.0001553,2]
[399071763,1766102433224,-69.51719832,0.00015531,2]
[399071764,1766102433344,-6860.97560336,0.00015531,2]
[399071765,1766102441549,-1000.0,0.00015531,2]
[399071766,1766102441587,-2500.0,0.00015531,2]
[399071767,1766102441630,-500.0,0.00015531,2]
[399071768,1766102441685,-279.0,0.00015531,2]
[399071769,1766102441724,-300.0,0.00015629,2]
[399071770,1766102441772,-385.07183058,0.0001563,2]
[399071771,1766102441950,-71.86633884,0.0001563,2]
[399071772,1766102444624,-428.13366116,0.0001563,2]
[399071773,1766102444673,-500.0,0.0001563,2]
[399071774,1766102444724,-500.0,0.0001563,2]
[399071775,1766102444771,-500.0,0.0001563,2]
[399071776,1766102444819,-500.0,0.0001563,2]
[399071777,1766102444869,-500.0,0.0001563,2]
[399071778,1766102444919,-500.0,0.0001563,2]
[399071779,1766102444964,-500.0,0.0001563,2]
[399071780,1766102445011,-500.0,0.0001563,2]
[399071781,1766102445057,-500.0,0.0001563,2]
[399071782,1766102445392,-143.74267768,0.0001563,2]
[399071787,1766102466665,-300.0,0.00015629,2]
[399071788,1766102466704,-21.83214008,0.0001563,2]
[399071789,1766102468282,-27.80411919,0.0001563,2]
[399071790,1766102468316,-224.60969678,0.0001563,2]
[399071791,1766102470643,-275.39030322,0.0001563,2]
[399071792,1766102470677,-196.74009097,0.0001563,2]
[399071793,1766102473679,-303.25990903,0.0001563,2]
[399071794,1766102473719,-177.65307163,0.0001563,2]
[399071795,1766102473760,-500.0,0.0001563,2]
[399071796,1766102473811,-500.0,0.0001563,2]
[399071797,1766102473861,-500.0,0.0001563,2]
[399071798,1766102473915,-500.0,0.0001563,2]
[399071799,1766102473964,-500.0,0.0001563,2]
[399071800,1766102474013,-500.0,0.0001563,2]
[399071801,1766102474061,-500.0,0.0001563,2]
[399071802,1766102474109,-500.0,0.0001563,2]
[399071803,1766102474157,-500.0,0.0001563,2]
[399071804,1766102475080,-38.18403868,0.0001563,2]
[399071805,1766102475626,-168.42977547,0.0001563,2]
[399071806,1766102476465,-293.38618585,0.0001563,2]
[399071807,1766102476524,-500.0,0.0001563,2]
[399071808,1766102476576,-500.0,0.0001563,2]
[399071809,1766102476628,-500.0,0.0001563,2]
[399071810,1766102476676,-500.0,0.0001563,2]
[399071811,1766102476727,-500.0,0.0001563,2]
[399071812,1766102476776,-500.0,0.0001563,2]
[399071813,1766102476825,-500.0,0.0001563,2]
[399071814,1766102476885,-500.0,0.0001563,2]
[399071815,1766102476943,-541.60594064,0.0001563,2]
[399071816,1766102478445,-330.02574702,0.0001563,2]
[399071817,1766102478617,-169.97425298,0.0001563,2]
[399071818,1766102478660,-252.73201604,0.0001563,2]
[399071819,1766102483145,-391.52136296,0.0001563,2]
[399071820,1766102483201,-247.26798396,0.0001563,2]
[399071821,1766102483250,-500.0,0.0001563,2]
[399071822,1766102483298,-500.0,0.0001563,2]
[399071823,1766102483338,-157.46631158,0.0001563,2]
[399071824,1766102483385,-500.0,0.0001563,2]
[399071825,1766102483433,-500.0,0.0001563,2]
[399071826,1766102483481,-500.0,0.0001563,2]
[399071827,1766102483531,-500.0,0.0001563,2]
[399071828,1766102483583,-204.16059406,0.0001563,2]
[399071829,1766102483636,-500.0,0.0001563,2]
[399071830,1766102483691,-499.17749488,0.0001563,2]
[399071831,1766102483738,-0.82250512,0.0001563,2]
[399071832,1766102483775,-285.81344809,0.0001563,2]
[399071833,1766102484185,-0.82250512,0.0001563,2]
[399071834,1766102485725,-213.36404679,0.0001563,2]
[399071835,1766102485764,-67.55333395,0.0001563,2]
[399071836,1766102485835,-432.44666605,0.0001563,2]
[399071837,1766102485887,-500.0,0.0001563,2]
[399071838,1766102485940,-353.16537235,0.0001563,2]
[399071839,1766102489827,-185.35041865,0.0001553,2]
[399071840,1766102492458,-314.64958135,0.0001553,2]
[399071841,1766102492490,-12.76904125,0.0001563,2]
[399071842,1766102494282,1825.869,0.00015318,2]
[399071843,1766102494364,178.919,0.00015318,2]
[399071844,1766102497214,-173.52947433,0.0001563,2]
[399071845,1766102500870,-18.37717954,0.0001563,2]
[399071846,1766102500897,-328.72745099,0.0001563,2]
[399071847,1766102503406,-300.0,0.00015531,2]
[399071848,1766102506027,-189.05239858,0.00015531,2]
[399071849,1766102508536,-1105.13662106,0.00015531,2]
[399071850,1766102511874,-2.85009378,0.00015531,2]
[399071851,1766102511902,-156.04235594,0.0001563,2]
[399071852,1766102511934,-15.83357882,0.0001563,2]
[399071853,1766102513457,-184.06924501,0.0001563,2]
[399071854,1766102515729,-300.09717617,0.0001563,2]
[399071855,1766102515762,-50.20618984,0.0001563,2]
[399071856,1766102519268,-232.29586124,0.0001563,2]
[399071857,1766102521198,-215.73316386,0.0001563,2]
[399071858,1766102523102,-300.50791959,0.0001557,2]
[399071859,1766102523156,-10000.01,0.0001557,2]
[399071866,1766102527713,-204.91082782,0.0001557,2]
[399071867,1766102530236,-338.11606932,0.0001557,2]
[399071868,1766102530933,-1675.36753029,0.0001557,2]
[399071869,1766102530976,-500.0,0.0001563,2]
[399071870,1766102531018,-293.00127702,0.0001563,2]
[399071871,1766102532333,1000.0,0.00015531,2]
[399071872,1766102532556,-171.27254901,0.0001563,2]
[399071873,1766102532585,-150.24692234,0.0001563,2]
[399071874,1766102536550,-300.0,0.0001563,2]
[399071875,1766102541282,-49.75307766,0.0001563,2]
[399071876,1766102541307,-342.34423021,0.0001563,2]
[399071877,1766102543606,-154.83865845,0.0001563,2]
[399071878,1766102545975,-2.81711134,0.0001563,2]
[399071879,1766102546573,-500.0,0.0001563,2]
[399071880,1766102546601,-300.0,0.0001563,2]
[399071881,1766102546637,-97.85801099,0.00015631,2]
[399071882,1766102548645,-315.56447045,0.00015631,2]
[399071883,1766102550796,-248.07545574,0.00015531,2]
[399071884,1766102553177,-256.8873504,0.00015531,2]
[399071885,1766102556291,-300.0,0.00015531,2]
[399071886,1766102557759,-317.86243822,0.00015531,2]
[399071887,1766102563270,-194.85621072,0.00015531,2]
[399071888,1766102567416,-163.73095825,0.00015531,2]
[399071889,1766102568621,-421.96431454,0.00015531,2]
[399071890,1766102570607,-571.27416438,0.00015531,2]
[399071891,1766102574055,-25.34910775,0.00015531,2]
[399071892,1766102574078,-182.42775107,0.00015531,2]
[399071893,1766102574110,-36.57784916,0.00015631,2]
[399071894,1766102575868,-624.48,0.00015631,2]
[399071895,1766102578948,-244.97466669,0.00015631,2]
[399071897,1766102630664,-195.0,0.00015442,2]
[399071907,1766102681484,166.66,0.00014014,2]
[399071908,1766102681536,166.66,0.00014309,2]
[399071909,1766102681582,166.66,0.00014604,2]
[399071910,1766102681625,128.24024517,0.00014899,2]
[399071911,1766102681650,38.41975483,0.00014899,2]
[399071912,1766102681709,166.66,0.00015194,2]
[399071914,1766102693304,-8.77230882,0.00015442,2]
[399071915,1766102693345,-166.66,0.00015489,2]
[399071916,1766102693384,-1000.0,0.00015531,2]
[399071917,1766102693443,-1330.30421027,0.00015531,2]
[399071918,1766102693572,-5318.84117209,0.00015531,2]
[399071919,1766102693599,-2020.56040737,0.00015531,2]
[399071920,1766102693611,-611.82969944,0.00015531,2]
[399071921,1766102693622,-520.18942357,0.00015531,2]
[399071922,1766102693642,-507.41196162,0.00015531,2]
[399071923,1766102693664,-1000.0,0.0001563,2]
[399071924,1766102693687,-257.48689267,0.0001563,2]
[399071925,1766102693707,-500.0,0.0001563,2]
[399071926,1766102693721,-500.0,0.0001563,2]
[399071927,1766102693733,-500.0,0.0001563,2]
[399071928,1766102693747,-500.0,0.0001563,2]
[399071929,1766102693760,-500.0,0.0001563,2]
[399071930,1766102693772,-495.92719073,0.0001563,2]
[399071931,1766102693786,-500.0,0.0001563,2]
[399071932,1766102693800,-256.30021433,0.0001563,2]
[399071933,1766102698895,-195.0,0.00015531,2]
[399071934,1766102698942,-243.69978567,0.0001563,2]
[399071935,1766102698988,-500.0,0.0001563,2]
[399071936,1766102699032,-500.0,0.0001563,2]
[399071937,1766102699077,-500.0,0.0001563,2]
[399071938,1766102699119,-500.0,0.0001563,2]
[399071939,1766102699163,-500.0,0.0001563,2]
[399071940,1766102699208,-500.0,0.0001563,2]
[399071941,1766102699251,-500.0,0.0001563,2]
[399071942,1766102699293,-500.0,0.0001563,2]
[399071943,1766102699333,-500.0,0.0001563,2]
[399071944,1766102699480,-500.0,0.0001563,2]
[399071945,1766102699517,-500.0,0.0001563,2]
[399071946,1766102699555,-285.84327203,0.0001563,2]
[399071947,1766102699593,-500.0,0.0001563,2]
[399071948,1766102699640,-500.0,0.0001563,2]
[399071949,1766102699686,-500.0,0.0001563,2]
[399071950,1766102699734,-500.0,0.0001563,2]
[399071951,1766102699776,-500.0,0.0001563,2]
[399071952,1766102699819,-500.0,0.0001563,2]
[399071953,1766102699858,-649.99999999,0.0001563,2]
[399071954,1766102700334,-122.61042866,0.0001563,2]
[399071955,1766102700360,-128.32345596,0.0001563,2]
[399071977,1766102719363,150.0,0.00015288,2]
[399071978,1766102719491,150.0,0.00015288,2]
[399071979,1766102719694,150.0,0.00015288,2]
[399071980,1766102724164,2688.0,0.00016,5]
[399071981,1766102726424,150.0,0.00015288,2]
[399071982,1766102728263,150.0,0.00015288,2]
[399071983,1766102728315,150.0,0.00015288,2]
[399071984,1766102728349,150.0,0.00015288,2]
[399071985,1766102733669,150.0,0.00015288,2]
[399071986,1766102739607,150.0,0.00015288,2]
[399071987,1766102739638,150.00000001,0.00015288,2]
[399071988,1766102739668,150.0,0.00015288,2]
[399071989,1766102742455,150.0,0.00015288,2]
[399071999,1766102780612,-150.0,0.00015401,2]
[399072000,1766102780641,-16.66,0.00015514,2]
[399072006,1766102782070,-133.34,0.00015514,2]
[399072007,1766102782098,-60.15275747,0.00015531,2]
[399072008,1766102782485,-1397.15414253,0.00015531,2]
[399072009,1766102782525,-195.0,0.0001558,2]
[399072010,1766102782564,-360.19128046,0.00015611,2]
[399072011,1766102782603,-150.0,0.00015627,2]
[399072012,1766102782643,-1200.0,0.00015629,2]
[399072013,1766102782685,-300.0,0.00015629,2]
[399072014,1766102782730,-1052.95,0.0001563,2]
[399072015,1766102782773,-189.41915402,0.0001563,2]
[399072016,1766102782993,-310.58084598,0.0001563,2]
[399072017,1766102783047,-300.0,0.0001563,2]
[399072018,1766102783085,-300.0,0.0001563,2]
[399072019,1766102784624,-8800.01,0.00015631,2]
[399072020,1766102784751,-10000.01,0.00015631,2]
[399072021,1766102784792,-230.88441276,0.00015631,2]
[399072022,1766102784822,-10000.01,0.00015631,2]
[399072023,1766102784860,-10000.01,0.00015631,2]
[399072024,1766102784884,-10000.01,0.00015631,2]
[399072025,1766102784907,-10000.01,0.00015631,2]
[399072026,1766102784929,-10000.01,0.00015631,2]
[399072027,1766102784952,-10000.01,0.00015631,2]
[399072028,1766102785579,-10000.01,0.00015631,2]
[399072029,1766102785819,-10000.01,0.00015631,2]
[399072030,1766102786087,-10000.01,0.00015631,2]
[399072031,1766102786225,-10000.01,0.00015631,2]
[399072032,1766102786370,-10000.01,0.00015631,2]
[399072033,1766102786405,-230.44656256,0.00015631,2]
[399072034,1766102786510,-10000.01,0.00015631,2]
[399072035,1766102787962,-179.04427503,0.00015631,2]
[399072036,1766102790737,-165.18077783,0.0001563,2]
[399072037,1766102794062,-101.53055268,0.0001563,2]
[399072038,1766102794097,-147.91706129,0.00015631,2]
[399072039,1766102798105,-342.72675548,0.00015631,2]
[399072040,1766102800267,-343.1717894,0.00015631,2]
[399072041,1766102803863,-10000.01,0.00015631,2]
[399072042,1766102804110,-10000.01,0.00015631,2]
[399072043,1766102804246,-10000.01,0.00015631,2]
[399072044,1766102804378,-10000.01,0.00015631,2]
[399072045,1766102805724,-194.31109753,0.00015631,2]
[399072046,1766102807723,-209.02931873,0.00015631,2]
[399072048,1766102809662,-10000.01,0.00015631,2]
[399072049,1766102809771,-181.96887691,0.00015631,2]
[399072050,1766102809816,-10000.01,0.00015631,2]
[399072051,1766102809938,-10000.01,0.00015631,2]
[399072052,1766102810086,-10000.01,0.00015631,2]
[399072053,1766102812443,-211.53689195,0.00015531,2]
[399072054,1766102815033,-337.3378388,0.00015531,2]
[399072056,1766102815887,-10000.01,0.00015531,2]
[399072057,1766102818979,-653.29363774,0.00015531,2]
[399072058,1766102822291,-10000.01,0.00015531,2]
[399072059,1766102823267,-151.12526925,0.00015531,2]
[399072060,1766102826535,-199.99,0.00015531,2]
[399072061,1766102829776,-320.16829366,0.00015531,2]
[399072063,1766102831907,-300.0,0.00015531,2]
[399072065,1766102834133,-184.66639574,0.00015531,2]
[399072247,1766102855729,-272.81642056,0.00015531,2]
[399072254,1766102857921,-283.62168073,0.00015531,2]
[399072256,1766102862349,-333.87877033,0.00015531,2]
[399072257,1766102868296,-240.12752032,0.00015431,2]
[399072258,1766102868329,-65.53544778,0.00015531,2]
[399072259,1766102871555,-256.79302673,0.00015531,2]
[399072261,1766102884593,-197.7872548,0.00015431,2]
[399072262,1766102888055,-257.37849078,0.00015431,2]
[399072263,1766102888090,-18.67274827,0.00015531,2]
[399072264,1766102889587,-170.96708338,0.00015531,2]
[399072265,1766102891864,-271.02534256,0.00015531,2]
[399072266,1766102893136,-10000.01,0.00015531,2]
[399072267,1766102893368,-10000.01,0.00015531,2]
[399072268,1766102893531,-10000.01,0.00015531,2]
[399072269,1766102893686,-10000.01,0.00015531,2]
[399072270,1766102893828,-10000.01,0.00015531,2]
[399072271,1766102893995,-10000.01,0.00015531,2]
[399072272,1766102894030,-229.73329217,0.00015531,2]
[399072273,1766102894137,-10000.01,0.00015531,2]
[399072274,1766102894284,-10000.01,0.00015531,2]
[399072275,1766102894415,-10000.01,0.00015531,2]
[399072276,1766102896033,-10000.01,0.00015531,2]
[399072277,1766102896120,-554.90568983,0.00015531,2]
[399072278,1766102899445,-227.68586486,0.00015531,2]
[399072279,1766102899521,-10000.01,0.00015531,2]
[399072280,1766102899544,-10000.01,0.00015531,2]
[399072281,1766102899616,-10000.01,0.00015531,2]
[399072282,1766102899798,-10000.01,0.00015531,2]
[399072283,1766102899930,-10000.01,0.00015531,2]
[399072284,1766102900213,-10000.01,0.00015531,2]
[399072285,1766102903819,-350.59965356,0.00015531,2]
[399072286,1766102905355,-200.6751352,0.00015531,2]
[399072287,1766102907011,-613.510581,0.00015531,2]
[399072288,1766102908074,-10000.01,0.00015531,2]
[399072289,1766102908215,-10000.01,0.00015531,2]
[399072290,1766102908349,-10000.01,0.00015531,2]
[399072291,1766102908477,-10000.01,0.00015531,2]
[399072292,1766102908622,-10000.01,0.00015531,2]
[399072293,1766102908766,-10000.01,0.00015531,2]
[399072294,1766102908900,-10000.01,0.00015531,2]
[399072295,1766102911054,-300.0,0.00015531,2]
[399072296,1766102912222,-184.4491915,0.00015531,2]
[399072297,1766102914355,-273.80427569,0.0001553,2]
[399072298,1766102914384,-26.19572431,0.0001553,2]
[399072299,1766102918914,-155.57359554,0.0001553,2]
[399072300,1766102920721,-186.99705918,0.0001553,2]
[399072301,1766102922853,-131.23362097,0.0001553,2]
[399072302,1766102922878,-368.76637903,0.0001553,2]
[399072303,1766102925227,-131.23362097,0.0001553,2]
[399072304,1766102925255,-55.4190174,0.0001553,2]
[399072305,1766102925616,500.0,0.00014755,2]
[399072306,1766102926803,-245.55,0.0001553,2]
[399072307,1766102928385,-41.11809586,0.0001553,2]
[399072308,1766102928410,-486.66433247,0.0001553,2]
[399072317,1766102934165,-13.33566753,0.0001553,2]
[399072319,1766102934192,-198.88505319,0.0001553,2]
[399072321,1766102935264,-184.61978883,0.0001553,2]
[399072322,1766102937075,-116.49515798,0.0001553,2]
[399072323,1766102937099,-57.97934388,0.0001553,2]
[399072324,1766102938838,-152.41552863,0.0001553,2]
[399072325,1766102941659,-291.90043449,0.00015529,2]
[399072326,1766102946185,-8.09956551,0.00015529,2]
[399072327,1766102946211,-143.57816468,0.0001553,2]
[399072328,1766102949437,-300.0,0.00015529,2]
[399072329,1766102949469,-46.87954165,0.0001553,2]
[399072331,1766102952133,-18.94801618,0.0001553,2]
[399072333,1766102952160,-204.23261034,0.0001553,2]
[399072337,1766102954774,-153.12045835,0.0001553,2]
[399072338,1766102957812,-142.64693131,0.0001553,2]
[399072339,1766102957837,-74.17656381,0.0001553,2]
[399072340,1766102960108,-150.50095219,0.0001553,2]
[399072341,1766102960133,-23.86214036,0.0001553,2]
[399072348,1766102963438,-294.3508281,0.0001553,2]
[399072351,1766102964990,-181.78703154,0.0001553,2]
[399072352,1766102965016,-17.5365431,0.0001553,2]
[399072356,1766102969560,-226.7319614,0.0001553,2]
[399072357,1766102972731,-359.04833026,0.00015431,2]
[399072358,1766102974984,-217.66582461,0.00015431,2]
[399072359,1766102980593,-291.45589903,0.00015431,2]
[399072360,1766102984879,-275.37446816,0.00015431,2]
[399072361,1766102986361,-344.74496815,0.00015431,2]
[399072362,1766102993482,-274.33073704,0.00015431,2]
[399072363,1766102997664,-169.86523489,0.00015431,2]
[399072364,1766102999238,-225.66926296,0.00015431,2]
[399072365,1766103002392,-300.0,0.00015431,2]
[399072372,1766103006429,-301.03225509,0.00015431,2]
[399072373,1766103010123,-172.01261479,0.00015431,2]
[399072374,1766103013452,-242.66294821,0.00015431,2]
[399072375,1766103017316,-180.20945328,0.00015431,2]
[399072376,1766103024630,-303.14277782,0.00015431,2]
[399072377,1766103026192,-266.5374494,0.00015431,2]
[399072378,1766103027795,-154.15387693,0.00015431,2]
[399072379,1766103030532,-324.2788907,0.00015431,2]
[399072391,1766103031848,-1821.37010361,0.00015431,2]
[399072392,1766103031861,-264.59999972,0.00015431,2]
[399072393,1766103031874,-728.33787106,0.00015431,2]
[399072394,1766103031887,-304.24350998,0.00015431,2]
[399072395,1766103031918,-1372.20872867,0.00015431,2]
[399072396,1766103031928,-212.896259,0.00015431,2]
[399072397,1766103031940,-65.103741,0.00015431,2]
[399072398,1766103031949,-1139.33701815,0.00015431,2]
[399072399,1766103031962,-373.29972738,0.00015431,2]
[399072400,1766103031991,-35.18944808,0.00015431,2]
[399072402,1766103032001,-300.0,0.00015529,2]
[399072403,1766103032011,-300.0,0.00015529,2]
[399072404,1766103032020,-1200.0,0.00015529,2]
[399072405,1766103032030,-300.0,0.00015529,2]
[399072406,1766103032041,-500.0,0.0001553,2]
[399072408,1766103032051,-55.7314955,0.0001553,2]
[399072410,1766103032061,-180.24082487,0.0001553,2]
[399072412,1766103032071,-131.24382119,0.0001553,2]
[399072414,1766103032083,-368.75617881,0.0001553,2]
[399072416,1766103032093,-500.0,0.0001553,2]
[399072418,1766103032103,-500.0,0.0001553,2]
[399072420,1766103032113,-500.0,0.0001553,2]
[399072422,1766103032123,-500.0,0.0001553,2]
[399072424,1766103032132,-500.0,0.0001553,2]
[399072426,1766103032141,-500.0,0.0001553,2]
[399072427,1766103032151,-500.0,0.0001553,2]
[399072429,1766103032160,-500.0,0.0001553,2]
[399072432,1766103032170,-500.0,0.0001553,2]
[399072434,1766103032180,-500.0,0.0001553,2]
[399072437,1766103032190,-500.0,0.0001553,2]
[399072439,1766103032200,-500.0,0.0001553,2]
[399072440,1766103032210,-500.0,0.0001553,2]
[399072443,1766103032219,-500.0,0.0001553,2]
[399072444,1766103032229,-500.0,0.0001553,2]
[399072446,1766103032239,-500.0,0.0001553,2]
[399072448,1766103032249,-500.0,0.0001553,2]
[399072450,1766103032259,-500.0,0.0001553,2]
[399072452,1766103032269,-500.0,0.0001553,2]
[399072453,1766103032279,-500.0,0.0001553,2]
[399072454,1766103032290,-500.0,0.0001553,2]
[399072455,1766103032299,-500.0,0.0001553,2]
[399072456,1766103032309,-500.0,0.0001553,2]
[399072457,1766103032318,-500.0,0.0001553,2]
[399072458,1766103032328,-500.0,0.0001553,2]
[399072459,1766103032337,-500.0,0.0001553,2]
[399072460,1766103032347,-500.0,0.0001553,2]
[399072461,1766103032356,-500.0,0.0001553,2]
[399072462,1766103032366,-500.0,0.0001553,2]
[399072463,1766103032376,-500.0,0.0001553,2]
[399072464,1766103032385,-500.0,0.0001553,2]
[399072465,1766103032396,-500.0,0.0001553,2]
[399072466,1766103032405,-151.67773019,0.0001553,2]
[399072467,1766103032415,-500.0,0.0001553,2]
[399072468,1766103032426,-500.0,0.0001553,2]
[399072469,1766103032436,-500.0,0.0001553,2]
[399072470,1766103032446,-500.0,0.0001553,2]
[399072471,1766103032455,-500.0,0.0001553,2]
[399072472,1766103032464,-500.0,0.0001553,2]
[399072473,1766103032474,-500.0,0.0001553,2]
[399072474,1766103032484,-500.0,0.0001553,2]
[399072475,1766103032494,-500.0,0.0001553,2]
[399072476,1766103032504,-500.0,0.0001553,2]
[399072477,1766103032514,-488.50221515,0.0001553,2]
[399072478,1766103032525,-500.0,0.0001553,2]
[399072479,1766103032536,-500.0,0.0001553,2]
[399072480,1766103032546,-216.82349512,0.0001553,2]
[399072481,1766103032555,-500.0,0.0001553,2]
[399072482,1766103032566,-500.0,0.0001553,2]
[399072483,1766103032576,-253.81778695,0.0001553,2]
[399072484,1766103032586,-500.0,0.0001553,2]
[399072485,1766103032598,-629.24115995,0.0001553,2]
[399072486,1766103032608,-500.0,0.0001553,2]
[399072487,1766103032617,-500.0,0.0001553,2]
[399072488,1766103032627,-270.89748998,0.0001553,2]
[399072489,1766103032638,-500.0,0.0001553,2]
[399072490,1766103032648,-619.23464487,0.0001553,2]
[399072491,1766103032658,-300.0,0.0001553,2]
[399072492,1766103033100,-431532.10693732,0.00015531,2]
[399072493,1766103033115,-5710.00471863,0.00015531,2]
[399072494,1766103033221,-155.80214274,0.00015531,2]
[399072496,1766103037840,-1664.17417803,0.00015531,2]
[399072497,1766103037893,-10516.64293417,0.00015531,2]
[399072498,1766103037967,-3636.82058928,0.00015531,2]
[399072499,1766103037979,-995.02582332,0.00015531,2]
[399072500,1766103037990,-791.20191441,0.00015531,2]
[399072501,1766103038027,-1238.95791096,0.00015531,2]
[399072504,1766103038039,-822.68570924,0.00015531,2]
[399072537,1766103039239,-244.68722289,0.00015531,2]
[399072981,1766103043540,-7182.87468006,0.00015531,2]
[399072985,1766103043564,-1729.9999,0.00015531,2]
[399072987,1766103043575,-1774.97084956,0.00015531,2]
[399072989,1766103043585,-365.60756904,0.00015531,2]
[399072991,1766103043596,-395.92311807,0.00015531,2]
[399073002,1766103043684,-336.83598104,0.00015531,2]
[399073011,1766103043757,-748.0,0.00015531,2]
[399073296,1766103046785,-375.00021886,0.00015531,2]
[399073300,1766103046812,-296.33,0.00015531,2]
[399073305,1766103046849,-302.0,0.00015531,2]
[399073307,1766103046861,-357.449822,0.00015531,2]
[399073386,1766103047798,-266.13614531,0.0001553,2]
[399073815,1766103052114,-156.42083023,0.0001553,2]
[399074028,1766103054185,-77.44302446,0.0001553,2]
[399074032,1766103054218,-222.55697554,0.00015531,2]
[399074400,1766103057860,-158.87416982,0.00015531,2]
[399074531,1766103059096,-229.32527548,0.0001553,2]
[399075093,1766103064707,-270.67472452,0.0001553,2]
[399075097,1766103064734,-492.29058347,0.0001553,2]
[399075350,1766103067250,-7.70941653,0.0001553,2]
[399075354,1766103067277,-340.58755621,0.0001553,2]
[399075611,1766103069909,-159.41244379,0.0001553,2]
[399075615,1766103069936,-60.82405017,0.0001553,2]
[399075733,1766103072060,-151.0,0.00015528,2]
[399075734,1766103072091,-149.0,0.0001553,2]
[399075748,1766103135212,536.07571619,0.00018,30]
[399075756,1766103143774,500.0,0.00018,30]
[399075757,1766103144095,500.0,0.00018,30]
[399075758,1766103144431,500.0,0.00018,30]
[399075759,1766103144822,500.0,0.00018,30]
[399075760,1766103145145,500.0,0.00017,30]
[399075761,1766103145524,500.0,0.00017,30]
[399075762,1766103145874,500.0,0.00017,30]
[399075763,1766103146525,500.0,0.00018,30]
[399075764,1766103146660,500.0,0.00018,30]
[399075765,1766103146791,500.0,0.00018,30]
[399075766,1766103146875,500.0,0.00018,30]
[399075767,1766103146981,824.18199952,0.00017,30]
[399075768,1766103147139,500.0,0.00018,30]
[399075769,1766103147569,500.0,0.00018,30]
[399075770,1766103147925,500.0,0.00018,30]
[399075771,1766103149883,500.0,0.00018,30]
[399075772,1766103149980,500.0,0.00018,30]
[399075773,1766103150064,504.54452373,0.00018,30]
[399075774,1766103150119,500.0,0.00018,30]
[399075775,1766103150213,500.0,0.00017,30]
[399075776,1766103150293,500.0,0.00017,30]
[399075777,1766103150378,500.0,0.00018,30]
[399075778,1766103150434,830.78712744,0.00018,30]
[399075779,1766103150499,500.0,0.00017,30]
[399075780,1766103150573,500.0,0.00017,30]
[399075781,1766103150625,500.0,0.00018,30]
[399075782,1766103150734,500.0,0.00017,30]
[399075783,1766103150790,500.0,0.00018,30]
[399075784,1766103151259,500.0,0.00018,30]
[399075785,1766103151312,500.0,0.00017,30]
[399075786,1766103151393,500.0,0.00017,30]
[399075787,1766103151447,500.0,0.00018,30]
[399075788,1766103151584,500.0,0.00018,30]
[399075789,1766103151636,500.0,0.00017,30]
[399075790,1766103151942,500.0,0.00018,30]
[399075791,1766103152003,500.0,0.00017,30]
[399075792,1766103152278,500.0,0.00018,30]
[399075793,1766103152658,500.0,0.00017,30]
[399075794,1766103153010,500.0,0.00017,30]
[399075795,1766103153317,500.0,0.00017,30]
[399075796,1766103153662,500.0,0.00017,30]
[399075797,1766103154015,500.0,0.00017,30]
[399075798,1766103154377,500.0,0.00017,30]
[399075799,1766103155045,519.27534293,0.00017,30]
[399075800,1766103158028,612.51,0.00015521,3]
[399075806,1766103185582,-300.0,0.00015521,2]
[399075807,1766103185608,-700.2040257,0.00015521,2]
[399075837,1766103203465,300.0,0.0001477,2]